bitfinex/quotes_SOLUSD_20220103
["timestamp","ask_amount","ask_price","bid_price","bid_amount"]
[1641235371540,10.8172,170.98,170.87,80.913]
[1641235372164,26.08972069,170.98,170.87,80.913]
[1641235372663,25.58972069,170.98,170.87,80.913]
[1641235372862,16.81242069,170.98,170.87,81.173]
[1641235373262,77.566,171.02,170.87,89.573]
[1641235373469,77.566,171.02,170.87,94.269]
[1641235374464,77.826,171.02,170.87,94.269]
[1641235374865,77.826,171.02,170.87,85.4907]
[1641235375064,77.826,171.02,170.87,80.7947]
[1641235375267,1.3219,171.01,170.87,80.7947]
[1641235375466,1.5819,171.01,170.87,80.7947]
[1641235376668,1.3219,171.01,170.87,80.7947]
[1641235377271,45.9613,171.03,170.87,80.7947]
[1641235378071,46.2213,171.03,170.87,80.7947]
[1641235380977,1.2945,171.02,170.87,80.7947]
[1641235381377,1.5545,171.02,170.87,80.7947]
[1641235382177,1.5545,171.02,170.89,26.77360781]
[1641235382380,1.5545,171.02,170.9,8.4]
[1641235382579,1.5545,171.02,170.9,8.66]
[1641235383178,1.5545,171.02,170.9,8.4]
[1641235383379,1.5545,171.02,170.89,26.77360781]
[1641235383581,1.5545,171.02,170.88,1.2714]
[1641235383780,2.0545,171.02,170.88,1.2714]
[1641235383980,23.1385,171.01,170.88,1.2714]
[1641235384380,23.8985,171.01,170.88,1.2714]
[1641235385081,1.3206,171.0,170.88,1.2714]
[1641235385483,2.0806,171.0,170.88,1.2714]
[1641235385684,23.9663,170.99,170.88,1.2714]
[1641235386088,24.2263,170.99,170.88,1.2714]
[1641235386587,24.2263,170.99,170.87,72.1347]
[1641235386787,24.7263,170.99,170.87,72.1347]
[1641235387094,9.711,170.98,170.87,72.1347]
[1641235387493,10.471,170.98,170.87,72.1347]
[1641235392992,16.56717779,170.98,170.87,72.1347]
[1641235393992,23.4968,170.97,170.87,72.1347]
[1641235394393,8.4,170.96,170.83,24.2244]
[1641235394594,8.4,170.96,170.82,1.2706]
[1641235394595,10.08669368,170.96,170.82,1.2706]
[1641235394794,25.26639368,170.95,170.82,1.2706]
[1641235394995,8.4,170.94,170.82,1.2706]
[1641235395197,23.5189,170.93,170.81,74.7202]
[1641235395395,24.0189,170.93,170.82,2.8817338]
[1641235395595,24.2789,170.93,170.82,2.8817338]
[1641235396094,1.3442,170.92,170.82,2.8817338]
[1641235396496,2.1042,170.92,170.82,2.8817338]
[1641235396694,1.6042,170.92,170.82,2.8817338]
[1641235407805,1.3442,170.92,170.82,2.8817338]
[1641235408108,1.3442,170.92,170.82,3.1417338]
[1641235409105,1.6042,170.92,170.82,3.1417338]
[1641235409407,1.3442,170.92,170.82,3.1417338]
[1641235409607,1.3442,170.92,170.82,11.5417338]
[1641235414945,1.6042,170.92,170.82,11.5417338]
[1641235420750,1.6042,170.92,170.82,11.2817338]
[1641235425756,1.6042,170.92,170.81,75.974]
[1641235425963,2.1042,170.92,170.81,75.974]
[1641235435765,2.1042,170.92,170.75,134.4145]
[1641235435766,2.1042,170.92,170.75,1.299]
[1641235435969,2.1042,170.92,170.75,114.2067]
[1641235435970,8.4,170.91,170.75,114.2067]
[1641235436369,9.16,170.91,170.75,114.2067]
[1641235436566,23.0734,170.9,170.75,114.2067]
[1641235436766,31.4734,170.9,170.76,3.04027935]
[1641235436966,32.2334,170.9,170.76,3.04027935]
[1641235437165,1.2965,170.89,170.76,3.04027935]
[1641235437365,1.7965,170.89,170.76,3.04027935]
[1641235437567,2.0565,170.89,170.76,3.04027935]
[1641235438372,3.48319368,170.89,170.76,3.04027935]
[1641235438774,12.22612325,170.88,170.76,3.04027935]
[1641235438977,24.7971,170.87,170.76,3.04027935]
[1641235439376,25.0571,170.87,170.76,3.04027935]
[1641235439809,1.307,170.86,170.76,3.04027935]
[1641235440008,1.567,170.86,170.76,3.04027935]
[1641235440409,2.067,170.86,170.76,3.04027935]
[1641235440612,1.567,170.86,170.76,3.04027935]
[1641235440809,2.067,170.86,170.76,3.04027935]
[1641235441009,2.067,170.86,170.75,104.5077]
[1641235441618,23.9524,170.85,170.75,104.5077]
[1641235442012,24.7124,170.85,170.75,104.0077]
[1641235442514,24.2124,170.85,170.75,104.0077]
[1641235442915,1.352,170.84,170.75,104.0077]
[1641235443118,1.612,170.84,170.75,104.0077]
[1641235446418,2.112,170.84,170.75,104.0077]
[1641235447424,1.612,170.84,170.75,104.0077]
[1641235453837,1.352,170.84,170.75,108.6797]
[1641235454036,103.0996,170.89,170.75,117.3397]
[1641235454238,128.2727,170.89,170.75,117.3397]
[1641235454841,126.9176,170.89,170.75,117.3397]
[1641235455238,1.60234433,170.92,170.75,118.76639368]
[1641235455540,1.2518,170.91,170.75,118.76639368]
[1641235455939,1.7518,170.91,170.75,118.76639368]
[1641235456139,1.2518,170.91,170.75,118.76639368]
[1641235456338,1.7518,170.91,170.75,118.76639368]
[1641235457037,2.0118,170.91,170.75,118.76639368]
[1641235458876,2.0118,170.91,170.75,117.3397]
[1641235459077,2.0118,170.91,170.75,112.6677]
[1641235460275,1.5118,170.91,170.75,112.6677]
[1641235460475,1.5118,170.91,170.75,112.4077]
[1641235460975,2.0118,170.91,170.75,112.4077]
[1641235461476,10.4118,170.91,170.75,112.4077]
[1641235461676,24.70689368,170.9,170.75,104.0077]
[1641235461876,8.4,170.89,170.75,104.0077]
[1641235462076,8.66,170.89,170.75,104.0077]
[1641235462279,9.16,170.89,170.75,104.0077]
[1641235462478,9.16,170.89,170.75,104.2677]
[1641235462675,1.2756,170.88,170.75,104.2677]
[1641235462876,10.1756,170.88,170.75,104.2677]
[1641235463076,10.4356,170.88,170.75,104.2677]
[1641235463278,24.844,170.87,170.75,104.2677]
[1641235463479,25.344,170.87,170.75,104.2677]
[1641235464477,1.36,170.86,170.75,104.2677]
[1641235464881,1.62,170.86,170.75,104.2677]
[1641235465880,1.62,170.86,170.75,104.0077]
[1641235466880,2.12,170.86,170.75,104.0077]
[1641235467079,22.6681,170.85,170.75,104.0077]
[1641235467484,22.9281,170.85,170.75,104.0077]
[1641235468286,1.3521,170.84,170.75,104.0077]
[1641235468486,1.6121,170.84,170.75,104.0077]
[1641235473316,1.6121,170.84,170.73,2.32275585]
[1641235473515,6.09750726,170.83,170.7,73.6148]
[1641235473718,29.31590726,170.83,170.7,73.6148]
[1641235473915,30.07590726,170.83,170.7,73.6148]
[1641235474116,38.47590726,170.83,170.7,73.6148]
[1641235474517,38.47590726,170.83,170.71,2.18172524]
[1641235474918,1.2507,170.82,170.71,2.18172524]
[1641235475320,2.0107,170.82,170.71,2.18172524]
[1641235475519,24.6294,170.81,170.71,2.18172524]
[1641235475920,25.3894,170.81,170.71,2.18172524]
[1641235476519,25.3894,170.81,170.7,73.6148]
[1641235476720,1.3609,170.8,170.7,73.6148]
[1641235476922,1.8609,170.8,170.7,73.6148]
[1641235477121,2.1209,170.8,170.7,73.6148]
[1641235477323,1.6209,170.8,170.7,73.6148]
[1641235477922,1.6209,170.8,170.71,2.50810601]
[1641235479223,1.3609,170.8,170.71,1.00810601]
[1641235479923,1.3609,170.8,170.71,1.26810601]
[1641235480825,1.3609,170.8,170.71,1.00810601]
[1641235481027,1.6209,170.8,170.71,1.00810601]
[1641235488231,1.6209,170.8,170.7,73.6148]
[1641235488434,3.04759368,170.8,170.68,26.0589]
[1641235488635,3.54759368,170.8,170.68,26.0589]
[1641235488839,6.1112954,170.79,170.68,26.0589]
[1641235489034,6.3712954,170.79,170.68,26.0589]
[1641235489241,24.68139368,170.78,170.69,2.22508939]
[1641235489637,24.94139368,170.78,170.69,2.22508939]
[1641235489939,1.3073,170.77,170.69,2.22508939]
[1641235490538,1.5673,170.77,170.68,26.0589]
[1641235492039,1.5673,170.77,170.69,2.47744969]
[1641235500178,1.3073,170.77,170.69,2.47744969]
[1641235501580,1.5673,170.77,170.69,2.47744969]
[1641235505184,1.5673,170.77,170.68,26.0589]
[1641235505585,1.5673,170.77,170.69,8.7874]
[1641235507191,1.5673,170.77,170.7,2.5121171]
[1641235507587,10.355,170.77,170.7,2.5121171]
[1641235507790,10.355,170.77,170.69,8.7874]
[1641235508990,1.42669368,170.76,170.69,8.7874]
[1641235509393,1.68669368,170.76,170.69,8.7874]
[1641235510595,0.26,170.76,170.69,8.7874]
[1641235510795,1.42669368,170.75,170.69,8.7874]
[1641235511000,1.68669368,170.75,170.69,8.7874]
[1641235512599,3.02609368,170.75,170.68,11.14315454]
[1641235512998,3.02609368,170.75,170.68,8.7882]
[1641235513197,3.02609368,170.75,170.66,25.4239]
[1641235513396,3.02609368,170.75,170.66,25.6839]
[1641235514298,3.02609368,170.75,170.66,28.09629192]
[1641235514498,23.5812,170.74,170.66,28.09629192]
[1641235514722,23.5812,170.74,170.67,8.7887]
[1641235514924,23.8412,170.74,170.66,28.09629192]
[1641235515924,23.8412,170.74,170.69,8.7878]
[1641235516123,23.8412,170.74,170.69,11.08436246]
[1641235518327,23.8412,170.74,170.69,2.29656246]
[1641235518728,23.8412,170.74,170.68,8.7881]
[1641235521330,23.8412,170.74,170.69,2.88219245]
[1641235522833,23.5812,170.74,170.68,8.7881]
[1641235523236,1.3394,170.75,170.68,8.7881]
[1641235523835,1.3394,170.75,170.69,2.87934597]
[1641235524239,1.3394,170.75,170.69,11.66704597]
[1641235525238,1.3394,170.75,170.69,2.87934597]
[1641235525635,1.3394,170.75,170.69,3.13934597]
[1641235526638,1.5994,170.75,170.69,2.87934597]
[1641235532150,10.388,170.75,170.66,33.8239]
[1641235532350,10.388,170.75,170.67,8.7887]
[1641235532550,10.388,170.75,170.67,9.0487]
[1641235533971,10.388,170.75,170.67,11.81179041]
[1641235534773,0.26,170.75,170.67,11.81179041]
[1641235534975,0.26,170.78,170.67,20.21179041]
[1641235535174,0.26,170.78,170.68,22.6889]
[1641235535375,0.26,170.78,170.72,8.7858]
[1641235535577,23.1016,170.8,170.73,2.90648737]
[1641235536176,24.4346,170.8,170.73,2.90648737]
[1641235536576,24.4346,170.8,170.72,8.7858]
[1641235537680,24.4346,170.8,170.72,6.7858]
[1641235539081,33.2208,170.8,170.72,6.7858]
[1641235540281,24.4346,170.8,170.72,6.7858]
[1641235541582,33.2207,170.8,170.72,6.7858]
[1641235541783,32.9607,170.8,170.72,6.7858]
[1641235541984,13.65040518,170.84,170.72,7.0458]
[1641235542188,25.5603,170.83,170.74,2.64183917]
[1641235542390,26.0603,170.83,170.74,11.42683917]
[1641235542587,26.0603,170.83,170.74,11.68683917]
[1641235542787,34.845,170.83,170.74,11.68683917]
[1641235543089,34.845,170.83,170.74,8.785]
[1641235543289,35.105,170.83,170.74,8.785]
[1641235543585,36.53169368,170.83,170.74,8.785]
[1641235543993,36.27169368,170.83,170.74,11.34358179]
[1641235544187,26.15119368,170.83,170.74,11.60358179]
[1641235544388,0.5,170.83,170.74,11.60358179]
[1641235544789,1.2926,170.84,170.74,11.60358179]
[1641235545190,1.7926,170.84,170.74,11.60358179]
[1641235545390,10.8367,170.84,170.74,11.34358179]
[1641235545792,10.5767,170.84,170.74,11.34358179]
[1641235545990,10.5767,170.84,170.74,11.60358179]
[1641235546991,10.8367,170.84,170.74,11.60358179]
[1641235552894,1.7926,170.84,170.74,11.60358179]
[1641235553097,25.1637,170.84,170.74,11.60358179]
[1641235553695,25.1637,170.84,170.74,9.045]
[1641235553896,33.9478,170.84,170.74,9.045]
[1641235554097,35.63449368,170.84,170.74,0.26]
[1641235554496,35.63449368,170.84,170.73,34.7535]
[1641235558401,35.63449368,170.84,170.73,34.7335]
[1641235560104,35.63449368,170.84,170.73,34.4735]
[1641235560503,35.63449368,170.84,170.73,25.6879]
[1641235561704,35.63449368,170.84,170.73,34.4735]
[1641235563603,35.13449368,170.84,170.73,34.4735]
[1641235564304,35.13449368,170.84,170.7,8.4]
[1641235564503,8.4,170.83,170.71,8.7866]
[1641235564705,29.2907,170.82,170.7,24.2107]
[1641235564906,23.8248,170.81,170.69,76.8814]
[1641235565104,1.334,170.8,170.69,76.8814]
[1641235565304,1.334,170.8,170.69,79.42148163]
[1641235565603,3.52069368,170.8,170.69,88.20908163]
[1641235565802,23.1503,170.79,170.69,88.20908163]
[1641235566003,23.4103,170.79,170.69,88.20908163]
[1641235566406,25.33699368,170.79,170.69,88.20908163]
[1641235567104,1.3461,170.78,170.69,88.20908163]
[1641235567536,1.6061,170.78,170.69,88.20908163]
[1641235567739,8.7881,170.76,170.69,88.20908163]
[1641235567937,8.7881,170.76,170.69,86.97118163]
[1641235568137,9.0481,170.76,170.69,86.97118163]
[1641235568537,9.0481,170.76,170.69,75.6435]
[1641235569142,1.42669368,170.75,170.69,75.6435]
[1641235569339,8.7897,170.73,170.69,75.6435]
[1641235569539,9.0497,170.73,170.67,1.3108]
[1641235569740,9.0497,170.73,170.66,27.05321306]
[1641235569940,9.0497,170.73,170.66,27.31321306]
[1641235570740,0.26,170.73,170.66,36.10231306]
[1641235570939,24.7239,170.74,170.66,36.10231306]
[1641235571140,24.9839,170.74,170.66,36.10231306]
[1641235572440,33.7729,170.74,170.66,33.5095]
[1641235572842,33.7729,170.74,170.66,24.7204]
[1641235573443,33.7729,170.74,170.64,1.3233]
[1641235573641,9.82669368,170.73,170.62,74.3595]
[1641235573842,8.7919,170.69,170.62,74.3595]
[1641235574442,10.21859368,170.69,170.62,74.3595]
[1641235574642,11.72069368,170.69,170.62,74.3595]
[1641235575544,11.72069368,170.69,170.61,27.33089812]
[1641235575545,11.72069368,170.69,170.57,10.0455]
[1641235575745,23.6537,170.68,170.57,33.9861]
[1641235575943,8.7935,170.66,170.57,33.9861]
[1641235576144,8.7935,170.66,170.57,32.7335]
[1641235576443,15.5085,170.66,170.57,23.9406]
[1641235576646,8.4,170.65,170.55,76.6251]
[1641235576943,8.7965,170.6,170.53,93.7]
[1641235577147,16.4165,170.6,170.53,93.7]
[1641235577444,16.9165,170.6,170.53,117.22408649]
[1641235577644,17.1765,170.6,170.53,95.93900109]
[1641235577843,16.6765,170.6,170.53,95.93900109]
[1641235578044,0.26,170.6,170.53,95.93900109]
[1641235578243,31.5692,170.64,170.53,95.93900109]
[1641235578445,0.76,170.62,170.53,95.93900109]
[1641235578644,0.76,170.62,170.53,40.80272997]
[1641235578844,0.26,170.62,170.53,40.80272997]
[1641235579044,31.8292,170.64,170.53,40.80272997]
[1641235579651,32.3292,170.64,170.53,40.80272997]
[1641235580045,32.3292,170.64,170.53,11.03450109]
[1641235580244,32.3292,170.64,170.53,2.23900109]
[1641235581647,41.1236,170.64,170.53,2.23900109]
[1641235582251,40.6236,170.64,170.53,2.23900109]
[1641235583055,17.1944,170.64,170.53,2.23900109]
[1641235583253,2.92094433,170.68,170.53,2.23900109]
[1641235583254,11.71354433,170.68,170.53,11.29440109]
[1641235583455,10.39494433,170.68,170.54,73.4864]
[1641235583654,10.39494433,170.68,170.56,2.91664092]
[1641235584057,10.39494433,170.68,170.56,3.17664092]
[1641235584361,9.2926,170.68,170.56,3.17664092]
[1641235584559,9.5526,170.68,170.56,3.17664092]
[1641235584760,9.5526,170.68,170.6,2.87468361]
[1641235585760,9.0526,170.68,170.6,2.87468361]
[1641235585985,9.5526,170.68,170.6,2.87468361]
[1641235587188,9.2926,170.68,170.6,11.66648361]
[1641235587390,8.7916,170.69,170.6,11.92648361]
[1641235587588,8.7916,170.69,170.6,11.66648361]
[1641235587789,9.2916,170.69,170.6,2.87468361]
[1641235588393,9.2916,170.69,170.6,11.66638361]
[1641235588588,9.5516,170.69,170.6,11.66638361]
[1641235588789,9.5516,170.69,170.6,2.87468361]
[1641235588990,8.7916,170.69,170.6,3.13468361]
[1641235590191,8.7916,170.69,170.6,11.92658361]
[1641235590993,9.0516,170.69,170.6,11.92658361]
[1641235591491,9.0516,170.69,170.6,2.87468361]
[1641235591691,17.9516,170.69,170.6,2.87468361]
[1641235592496,17.9516,170.69,170.58,31.2974]
[1641235592695,24.802,170.68,170.58,31.2974]
[1641235592896,25.302,170.68,170.58,31.2974]
[1641235593095,25.562,170.68,170.58,31.2974]
[1641235593697,25.562,170.68,170.59,2.34419197]
[1641235593896,8.7926,170.67,170.59,2.34419197]
[1641235594095,9.0526,170.67,170.59,2.34419197]
[1641235594296,9.5526,170.67,170.59,2.34419197]
[1641235595799,9.5526,170.67,170.59,1.84419197]
[1641235596002,9.2926,170.67,170.59,1.84419197]
[1641235596203,9.2926,170.67,170.59,10.89659197]
[1641235596401,8.7926,170.67,170.59,10.89659197]
[1641235596906,24.802,170.68,170.59,10.89659197]
[1641235597506,25.062,170.68,170.59,10.89659197]
[1641235597908,25.062,170.68,170.59,10.63659197]
[1641235598305,25.562,170.68,170.59,10.63659197]
[1641235598703,34.3542,170.68,170.59,10.63659197]
[1641235600907,34.3542,170.68,170.59,1.84419197]
[1641235601605,35.78089368,170.68,170.59,1.84419197]
[1641235602007,35.78089368,170.68,170.58,22.5049]
[1641235602512,44.18089368,170.68,170.58,22.5049]
[1641235603210,44.18089368,170.68,170.59,2.98784705]
[1641235605132,42.7542,170.68,170.59,2.98784705]
[1641235605533,1.42669368,170.67,170.59,2.98784705]
[1641235605733,8.7947,170.63,170.55,48.66199922]
[1641235605933,8.7947,170.63,170.55,47.57879922]
[1641235606136,9.0547,170.63,170.55,47.57879922]
[1641235606439,1.42669368,170.67,170.55,47.57879922]
[1641235606638,1.5114,170.67,170.56,2.64201645]
[1641235607039,10.3041,170.67,170.56,2.90201645]
[1641235607641,10.8041,170.67,170.56,2.90201645]
[1641235608039,10.3041,170.67,170.56,2.90201645]
[1641235608745,10.3041,170.67,170.59,11.79854227]
[1641235609140,10.3041,170.67,170.59,12.05854227]
[1641235609345,10.8041,170.67,170.59,12.05854227]
[1641235609943,10.0441,170.67,170.59,12.05854227]
[1641235610246,23.4966,170.68,170.59,12.05854227]
[1641235610843,24.847,170.68,170.59,12.05854227]
[1641235611444,34.399,170.68,170.59,12.05854227]
[1641235612043,34.399,170.68,170.59,11.55854227]
[1641235613345,33.899,170.68,170.59,11.55854227]
[1641235616147,34.399,170.68,170.59,11.55854227]
[1641235616750,33.899,170.68,170.59,11.55854227]
[1641235616950,34.399,170.68,170.59,11.55854227]
[1641235617955,1.42669368,170.67,170.56,1.3184]
[1641235618152,8.7945,170.63,170.56,1.3184]
[1641235618350,8.7945,170.63,170.54,73.4864]
[1641235619064,8.7945,170.63,170.55,2.52986141]
[1641235619452,8.7945,170.63,170.55,2.78986141]
[1641235619657,8.7945,170.63,170.56,8.7938]
[1641235619951,8.7945,170.63,170.56,9.0538]
[1641235620854,9.5545,170.63,170.52,25.0942]
[1641235621055,24.9035,170.62,170.52,25.0942]
[1641235621259,8.7955,170.61,170.52,25.0942]
[1641235621457,8.7955,170.61,170.52,23.8572]
[1641235621857,8.7955,170.61,170.53,2.94442646]
[1641235622256,9.0555,170.61,170.53,2.94442646]
[1641235622655,9.0555,170.61,170.54,8.7952]
[1641235622856,1.42669368,170.6,170.54,8.7952]
[1641235623057,1.68669368,170.6,170.54,8.7952]
[1641235624061,0.26,170.6,170.54,8.7952]
[1641235624461,9.0555,170.61,170.54,8.7952]
[1641235624861,10.48219368,170.61,170.54,8.7952]
[1641235628865,10.48219368,170.61,170.53,11.74022646]
[1641235629064,10.48219368,170.61,170.53,2.94442646]
[1641235630565,10.48219368,170.61,170.54,8.7952]
[1641235631668,10.22219368,170.61,170.54,8.7952]
[1641235633067,10.22219368,170.61,170.54,9.0552]
[1641235633271,1.42669368,170.61,170.54,9.0552]
[1641235634069,1.42669368,170.61,170.54,8.7952]
[1641235634269,10.22209368,170.61,170.52,23.8572]
[1641235634469,10.22209368,170.61,170.52,24.1172]
[1641235634470,22.8106,170.6,170.52,24.1172]
[1641235634669,22.8106,170.6,170.52,23.8572]
[1641235635070,22.8106,170.6,170.53,2.39173163]
[1641235635268,23.0706,170.6,170.53,2.39173163]
[1641235635869,22.8106,170.6,170.53,11.18733163]
[1641235636070,22.8106,170.6,170.53,11.44733163]
[1641235636270,24.1366,170.6,170.53,11.44733163]
[1641235636770,22.8106,170.6,170.53,11.44733163]
[1641235636970,8.795,170.62,170.53,11.44733163]
[1641235637370,9.055,170.62,170.53,11.44733163]
[1641235637568,8.795,170.62,170.53,11.44733163]
[1641235638572,10.48169368,170.62,170.53,11.18733163]
[1641235639171,23.9461,170.61,170.53,11.18733163]
[1641235640072,23.9461,170.61,170.53,11.44733163]
[1641235643182,23.9461,170.61,170.53,9.0556]
[1641235643384,23.9461,170.61,170.53,8.7956]
[1641235643385,24.2061,170.61,170.53,8.7956]
[1641235643586,24.2061,170.61,170.52,32.6536]
[1641235643785,1.42669368,170.6,170.52,32.6536]
[1641235643987,1.68669368,170.6,170.52,32.6536]
[1641235644184,8.7966,170.59,170.52,32.6536]
[1641235644584,9.0566,170.59,170.52,32.6536]
[1641235645485,10.2902,170.59,170.52,32.6536]
[1641235645684,10.2902,170.59,170.53,2.42880627]
[1641235648602,10.2902,170.59,170.52,32.6534]
[1641235649403,10.2902,170.59,170.52,23.8572]
[1641235649604,10.2902,170.59,170.53,2.41247985]
[1641235653610,10.2902,170.59,170.53,1.91247985]
[1641235655008,1.42669368,170.58,170.53,1.91247985]
[1641235655208,10.22369368,170.58,170.53,1.91247985]
[1641235655405,10.48369368,170.58,170.53,1.91247985]
[1641235658108,22.6701,170.61,170.53,10.70827985]
[1641235658109,10.22279368,170.6,170.53,10.70827985]
[1641235658408,22.6701,170.61,170.53,10.70827985]
[1641235659706,31.4653,170.61,170.53,10.70827985]
[1641235660707,31.7253,170.61,170.53,10.70827985]
[1641235662817,22.6701,170.61,170.53,10.70827985]
[1641235663017,22.6701,170.61,170.53,10.96827985]
[1641235663516,1.2538,170.63,170.56,8.7942]
[1641235663718,1.2538,170.63,170.57,2.36746264]
[1641235664115,1.5138,170.63,170.57,2.36746264]
[1641235664316,1.2538,170.63,170.57,2.36746264]
[1641235664519,1.5138,170.63,170.57,2.36746264]
[1641235664720,10.308,170.63,170.56,8.7942]
[1641235665620,10.308,170.63,170.51,1.3611]
[1641235665621,11.73469368,170.63,170.51,1.3611]
[1641235665820,23.0075,170.62,170.52,2.6215976]
[1641235666021,8.7961,170.6,170.52,2.6215976]
[1641235666522,9.0561,170.6,170.52,2.6215976]
[1641235667128,32.1387,170.6,170.52,2.6215976]
[1641235667422,32.1387,170.6,170.51,24.2914]
[1641235667623,32.1387,170.6,170.53,8.7953]
[1641235668229,32.1387,170.6,170.51,24.2914]
[1641235669030,31.8787,170.6,170.51,24.5514]
[1641235669231,23.3426,170.6,170.51,24.5514]
[1641235669631,23.0826,170.6,170.51,24.5514]
[1641235670029,23.0826,170.6,170.54,8.795]
[1641235670830,1.2793,170.61,170.54,9.055]
[1641235671033,1.3,170.64,170.54,9.055]
[1641235671232,2.5765,170.64,170.54,10.2988]
[1641235671431,3.0765,170.64,170.54,10.2988]
[1641235671831,3.3365,170.64,170.54,10.2988]
[1641235672031,133.43739368,170.67,170.54,10.2988]
[1641235672032,47.65819368,170.67,170.54,10.2988]
[1641235672266,1.60234433,170.7,170.56,2.41508126]
[1641235672432,1.60234433,170.7,170.55,32.9017]
[1641235672433,1.60234433,170.7,170.62,2.96606048]
[1641235672632,1.60234433,170.7,170.62,8.62506048]
[1641235673031,1.60234433,170.7,170.62,8.88506048]
[1641235673431,1.86234433,170.7,170.62,8.88506048]
[1641235673633,1.86234433,170.7,170.64,8.79]
[1641235673834,0.26,170.7,170.64,8.79]
[1641235674033,9.0504,170.72,170.64,8.79]
[1641235678035,9.0504,170.72,170.62,9.0508]
[1641235678236,33.3154,170.72,170.62,9.0508]
[1641235679037,1.3581,170.71,170.62,9.0508]
[1641235679236,8.791,170.7,170.62,9.0508]
[1641235679539,9.051,170.7,170.62,9.0508]
[1641235679761,9.051,170.7,170.61,1.3146]
[1641235679762,9.051,170.7,170.61,8.7916]
[1641235679939,1.42669368,170.69,170.56,1.2463]
[1641235680140,2.73889368,170.69,170.56,1.2463]
[1641235680338,3.49889368,170.69,170.56,1.2463]
[1641235680540,1.42669368,170.68,170.56,1.2463]
[1641235680738,8.7932,170.66,170.57,2.15889487]
[1641235680941,1.68669368,170.68,170.6,2.30732262]
[1641235681137,0.26,170.66,170.6,2.30732262]
[1641235681740,1.2729,170.67,170.6,2.30732262]
[1641235681938,1.2729,170.67,170.56,31.19695651]
[1641235682139,10.3254,170.67,170.56,1.5063]
[1641235682841,35.0987,170.67,170.56,1.5063]
[1641235683038,35.0987,170.67,170.57,2.16131512]
[1641235683239,35.0987,170.67,170.59,8.7924]
[1641235683842,26.3062,170.67,170.59,8.7924]
[1641235685349,35.5987,170.67,170.54,75.1499]
[1641235685645,42.6777,170.67,170.54,75.1499]
[1641235686248,42.6777,170.67,170.55,2.31553122]
[1641235686648,42.6777,170.67,170.55,11.10993122]
[1641235686850,35.5987,170.67,170.55,11.10993122]
[1641235687570,35.5987,170.67,170.55,11.36993122]
[1641235688875,43.9987,170.67,170.55,11.36993122]
[1641235690076,43.9987,170.67,170.55,35.15303122]
[1641235690679,50.1111352,170.67,170.55,36.38833122]
[1641235692782,50.1111352,170.67,170.55,33.8128]
[1641235693882,50.1111352,170.67,170.55,36.34744888]
[1641235695385,49.8511352,170.67,170.55,36.34744888]
[1641235695599,34.8387,170.67,170.55,36.60744888]
[1641235696796,35.0987,170.67,170.55,36.60744888]
[1641235697199,43.9987,170.67,170.55,35.11214888]
[1641235698620,43.9987,170.67,170.55,36.42564888]
[1641235699023,43.9987,170.67,170.55,36.68564888]
[1641235700122,43.9987,170.67,170.55,36.42564888]
[1641235703726,43.9987,170.67,170.55,36.68564888]
[1641235704329,43.7387,170.67,170.55,36.68564888]
[1641235705730,43.9987,170.67,170.55,36.68564888]
[1641235709633,45.60104433,170.67,170.55,36.68564888]
[1641235710334,45.60104433,170.67,170.55,36.42564888]
[1641235711134,6.11182324,170.66,170.55,36.42564888]
[1641235711336,8.7944,170.64,170.55,36.42564888]
[1641235711534,22.7943,170.63,170.55,36.42564888]
[1641235711939,23.0543,170.63,170.55,36.42564888]
[1641235712136,1.289,170.62,170.55,36.42564888]
[1641235712535,1.549,170.62,170.55,36.42564888]
[1641235712736,1.549,170.62,170.55,35.11214888]
[1641235714340,8.794,170.65,170.55,35.37214888]
[1641235714542,1.60234433,170.67,170.55,35.37214888]
[1641235714739,1.60234433,170.67,170.56,8.4]
[1641235714940,1.60234433,170.67,170.56,8.66]